[Event "*** Titled Tuesday Blitz"]
[Site "Chess.com"]
[Date "2020.04.14"]
[Round "5"]
[White "ahappypawn"]
[Black "Frogo47"]
[Result "0-1"]
[WhiteElo "2319"]
[BlackElo "2521"]
[TimeControl "180+1"]
[EndTime "10:51:15 PDT"]
[Termination "Frogo47 won on time"]

1. c4 {[%clk 0:03:00.9]} 1... e5 {[%clk 0:02:59.3]} 2. Nc3 {[%clk 0:02:59]} 2...
Nc6 {[%clk 0:02:59.4]} 3. g3 {[%clk 0:02:55.2]} 3... Bc5 {[%clk 0:02:59.1]} 4.
Bg2 {[%clk 0:02:49]} 4... d6 {[%clk 0:02:59]} 5. Nf3 {[%clk 0:02:49.3]} 5... a6
{[%clk 0:02:58.4]} 6. O-O {[%clk 0:02:48.3]} 6... Nge7 {[%clk 0:02:58]} 7. e3
{[%clk 0:02:47.8]} 7... Ba7 {[%clk 0:02:57.7]} 8. d4 {[%clk 0:02:47.7]} 8... O-O
{[%clk 0:02:53.9]} 9. d5 {[%clk 0:02:31.6]} 9... Nb8 {[%clk 0:02:51.6]} 10. e4
{[%clk 0:02:30.7]} 10... Bg4 {[%clk 0:02:41.8]} 11. h3 {[%clk 0:02:26.5]} 11...
Bxf3 {[%clk 0:02:41.9]} 12. Bxf3 {[%clk 0:02:24.5]} 12... a5 {[%clk 0:02:40.6]}
13. a3 {[%clk 0:02:22]} 13... Nd7 {[%clk 0:02:36.1]} 14. Kg2 {[%clk 0:01:59]}
14... Bc5 {[%clk 0:02:32]} 15. Rb1 {[%clk 0:01:54.5]} 15... f5 {[%clk
0:02:23.7]} 16. exf5 {[%clk 0:01:50.2]} 16... Nxf5 {[%clk 0:02:21.6]} 17. Be4
{[%clk 0:01:50]} 17... g6 {[%clk 0:02:12.1]} 18. b4 {[%clk 0:01:40]} 18... axb4
{[%clk 0:02:11.8]} 19. axb4 {[%clk 0:01:40.9]} 19... Bd4 {[%clk 0:02:11.2]} 20.
Ne2 {[%clk 0:01:40.7]} 20... Bb6 {[%clk 0:02:06.2]} 21. Qc2 {[%clk 0:01:33]}
21... Qf6 {[%clk 0:02:02.9]} 22. h4 {[%clk 0:01:30.2]} 22... h6 {[%clk
0:01:49.3]} 23. Ng1 {[%clk 0:00:44.8]} 23... Rf7 {[%clk 0:01:36.3]} 24. Nf3
{[%clk 0:00:37.9]} 24... Raf8 {[%clk 0:01:30.4]} 25. Qd3 {[%clk 0:00:24.6]}
25... Qg7 {[%clk 0:01:28.9]} 26. Ba3 {[%clk 0:00:16.2]} 26... Bd4 {[%clk
0:01:04.5]} 27. Nxd4 {[%clk 0:00:12.8]} 27... Nxd4 {[%clk 0:01:01.3]} 28. f3
{[%clk 0:00:13.4]} 28... Nf6 {[%clk 0:00:50.6]} 29. Bxg6 {[%clk 0:00:12.9]}
29... Re7 {[%clk 0:00:46.2]} 30. h5 {[%clk 0:00:12.3]} 30... Kh8 {[%clk
0:00:42]} 31. Bb2 {[%clk 0:00:11.7]} 31... Nd7 {[%clk 0:00:35.5]} 32. Rbe1
{[%clk 0:00:11.4]} 32... Nf6 {[%clk 0:00:18.6]} 33. Bxd4 {[%clk 0:00:07.4]}
33... exd4 {[%clk 0:00:19.5]} 34. Qxd4 {[%clk 0:00:07.3]} 34... Rxe1 {[%clk
0:00:15.2]} 35. Rxe1 {[%clk 0:00:08.2]} 35... Nxh5 {[%clk 0:00:15.3]} 36. Qxg7+
{[%clk 0:00:04.3]} 36... Nxg7 {[%clk 0:00:16.2]} 37. Re7 {[%clk 0:00:04.6]}
37... Rf6 {[%clk 0:00:13.7]} 38. Be4 {[%clk 0:00:03.9]} 38... c6 {[%clk
0:00:12.5]} 39. Rxb7 {[%clk 0:00:03.7]} 39... cxd5 {[%clk 0:00:12.5]} 40. cxd5
{[%clk 0:00:03.8]} 40... Nh5 {[%clk 0:00:11]} 41. Rd7 {[%clk 0:00:01.5]} 41...
Rf8 {[%clk 0:00:09.4]} 0-1

[Event "*** Titled Tuesday Blitz"]
[Site "Chess.com"]
[Date "2020.04.14"]
[Round "5"]
[White "thedjoker98"]
[Black "RuperezA"]
[Result "1-0"]
[WhiteElo "2458"]
[BlackElo "2254"]
[TimeControl "180+1"]
[EndTime "10:51:15 PDT"]
[Termination "thedjoker98 won by resignation"]

1. d4 {[%clk 0:02:55.2]} 1... e6 {[%clk 0:03:00.9]} 2. c4 {[%clk 0:02:55]} 2...
d5 {[%clk 0:03:00.9]} 3. Nc3 {[%clk 0:02:45.7]} 3... Nf6 {[%clk 0:03:00.8]} 4.
cxd5 {[%clk 0:02:45.1]} 4... exd5 {[%clk 0:03:00.4]} 5. Bg5 {[%clk 0:02:45.2]}
5... Be7 {[%clk 0:03:00.4]} 6. e3 {[%clk 0:02:42.9]} 6... Nbd7 {[%clk
0:03:00.2]} 7. Bd3 {[%clk 0:02:37.9]} 7... Nf8 {[%clk 0:02:57.8]} 8. Nf3 {[%clk
0:02:34.5]} 8... Ne6 {[%clk 0:02:55.2]} 9. Bh4 {[%clk 0:02:34.6]} 9... g6 {[%clk
0:02:49.2]} 10. Ne5 {[%clk 0:02:28.8]} 10... Ng7 {[%clk 0:02:33.4]} 11. f4
{[%clk 0:02:19.4]} 11... Bf5 {[%clk 0:02:30.8]} 12. g4 {[%clk 0:02:07.4]} 12...
Bxd3 {[%clk 0:02:24.2]} 13. Qxd3 {[%clk 0:02:08.3]} 13... c6 {[%clk 0:02:17]}
14. O-O-O {[%clk 0:02:04.6]} 14... Ne4 {[%clk 0:02:16]} 15. Bxe7 {[%clk
0:02:02.8]} 15... Qxe7 {[%clk 0:02:16.9]} 16. Nxe4 {[%clk 0:01:57.4]} 16... dxe4
{[%clk 0:02:15.1]} 17. Qb3 {[%clk 0:01:58.3]} 17... f6 {[%clk 0:01:38.3]} 18.
Nc4 {[%clk 0:01:53.1]} 18... h5 {[%clk 0:01:37.2]} 19. h3 {[%clk 0:01:47]} 19...
O-O-O {[%clk 0:01:34.2]} 20. Kb1 {[%clk 0:01:28.7]} 20... Kb8 {[%clk 0:01:21.8]}
21. Rc1 {[%clk 0:01:20.6]} 21... Qd7 {[%clk 0:00:46.4]} 22. Nd2 {[%clk
0:00:40.5]} 22... hxg4 {[%clk 0:00:43.5]} 23. hxg4 {[%clk 0:00:41.4]} 23... Rxh1
{[%clk 0:00:29.7]} 24. Rxh1 {[%clk 0:00:42.3]} 24... Qxg4 {[%clk 0:00:30.2]} 25.
Qf7 {[%clk 0:00:40.5]} 25... Rd7 {[%clk 0:00:24.2]} 26. Qxf6 {[%clk 0:00:34.6]}
26... Qg2 {[%clk 0:00:23.4]} 27. Qe5+ {[%clk 0:00:31.8]} 27... Kc8 {[%clk
0:00:20.3]} 28. Rh8+ {[%clk 0:00:27.2]} 28... Rd8 {[%clk 0:00:20.5]} 29. Rxd8+
{[%clk 0:00:27.2]} 29... Kxd8 {[%clk 0:00:21.4]} 30. Nxe4 {[%clk 0:00:24.5]}
30... Nf5 {[%clk 0:00:20.3]} 31. Qb8+ {[%clk 0:00:21.9]} 31... Ke7 {[%clk
0:00:17.2]} 32. Qxb7+ {[%clk 0:00:22.8]} 32... Kd8 {[%clk 0:00:17.3]} 33. Qb8+
{[%clk 0:00:19]} 33... Ke7 {[%clk 0:00:16.7]} 34. Qe5+ {[%clk 0:00:19.1]} 34...
Kd8 {[%clk 0:00:17.1]} 35. Qf6+ {[%clk 0:00:19.6]} 35... Kc7 {[%clk 0:00:15.4]}
36. Qf7+ {[%clk 0:00:16.1]} 36... Kb6 {[%clk 0:00:14.5]} 37. Qb3+ {[%clk
0:00:16.1]} 37... Kc7 {[%clk 0:00:14.9]} 38. Nc5 {[%clk 0:00:13.6]} 38... Qg1+
{[%clk 0:00:11.5]} 39. Kc2 {[%clk 0:00:13.7]} 39... Nxe3+ {[%clk 0:00:11.6]} 40.
Kd3 {[%clk 0:00:13.9]} 40... Qf1+ {[%clk 0:00:07.9]} 41. Kxe3 {[%clk 0:00:13.8]}
41... Qh3+ {[%clk 0:00:08.2]} 42. Kd2 {[%clk 0:00:13.2]} 42... Qg2+ {[%clk
0:00:08.5]} 43. Kc3 {[%clk 0:00:13]} 43... Qf3+ {[%clk 0:00:08.4]} 44. Kb4
{[%clk 0:00:12.8]} 44... Qxf4 {[%clk 0:00:08.6]} 45. Ne6+ {[%clk 0:00:11.8]} 1-0

[Event "*** Titled Tuesday Blitz"]
[Site "Chess.com"]
[Date "2020.04.14"]
[Round "5"]
[White "floplover"]
[Black "ecwinslow"]
[Result "1-0"]
[WhiteElo "2279"]
[BlackElo "2097"]
[TimeControl "180+1"]
[EndTime "10:51:15 PDT"]
[Termination "floplover won on time"]

1. d4 {[%clk 0:03:00.9]} 1... Nf6 {[%clk 0:02:53.9]} 2. c4 {[%clk 0:03:01.1]}
2... g6 {[%clk 0:02:51.9]} 3. Nc3 {[%clk 0:03:01.2]} 3... Bg7 {[%clk 0:02:52.5]}
4. e4 {[%clk 0:03:01.2]} 4... d6 {[%clk 0:02:52.5]} 5. Nf3 {[%clk 0:03:01.8]}
5... O-O {[%clk 0:02:51.4]} 6. Be2 {[%clk 0:03:02.3]} 6... e5 {[%clk 0:02:51.3]}
7. O-O {[%clk 0:03:02.4]} 7... Nc6 {[%clk 0:02:50.1]} 8. d5 {[%clk 0:03:02.2]}
8... Ne7 {[%clk 0:02:49.6]} 9. b4 {[%clk 0:03:02.9]} 9... Nh5 {[%clk 0:02:45.4]}
10. Re1 {[%clk 0:03:02.5]} 10... h6 {[%clk 0:02:44]} 11. c5 {[%clk 0:02:57.9]}
11... f5 {[%clk 0:02:39]} 12. Nd2 {[%clk 0:02:53]} 12... Nf4 {[%clk 0:02:36.5]}
13. Bf1 {[%clk 0:02:51.5]} 13... a6 {[%clk 0:02:34.4]} 14. a4 {[%clk 0:02:50.9]}
14... g5 {[%clk 0:02:28.2]} 15. g3 {[%clk 0:02:45]} 15... Nfg6 {[%clk
0:02:12.5]} 16. exf5 {[%clk 0:02:44.9]} 16... Nxf5 {[%clk 0:02:08.5]} 17. Ra3
{[%clk 0:02:26.7]} 17... Nd4 {[%clk 0:02:01.3]} 18. Bg2 {[%clk 0:02:24.5]} 18...
g4 {[%clk 0:01:56.8]} 19. Nce4 {[%clk 0:02:22.1]} 19... Rf7 {[%clk 0:01:39.5]}
20. Nc4 {[%clk 0:02:20.8]} 20... Bf8 {[%clk 0:01:38.3]} 21. cxd6 {[%clk
0:02:16.5]} 21... cxd6 {[%clk 0:01:34.8]} 22. a5 {[%clk 0:02:14.3]} 22... Bf5
{[%clk 0:01:24.4]} 23. Be3 {[%clk 0:02:07.2]} 23... h5 {[%clk 0:01:10.6]} 24.
Nb6 {[%clk 0:01:58.8]} 24... Rb8 {[%clk 0:01:09.5]} 25. Bg5 {[%clk 0:01:50.8]}
25... Qe8 {[%clk 0:01:08.9]} 26. Rc3 {[%clk 0:01:44.3]} 26... Be7 {[%clk
0:00:58.1]} 27. Be3 {[%clk 0:01:38.1]} 27... Nf3+ {[%clk 0:00:43.3]} 28. Bxf3
{[%clk 0:01:35.9]} 28... gxf3 {[%clk 0:00:42.7]} 29. Ng5 {[%clk 0:01:19.4]}
29... e4 {[%clk 0:00:26.6]} 30. Nxf7 {[%clk 0:01:09.1]} 30... Qxf7 {[%clk
0:00:26.4]} 31. Rc7 {[%clk 0:01:09.2]} 31... h4 {[%clk 0:00:20.2]} 32. Bd4
{[%clk 0:01:00.3]} 32... hxg3 {[%clk 0:00:18.8]} 33. fxg3 {[%clk 0:00:59.4]}
33... Qh7 {[%clk 0:00:18.7]} 34. Ba1 {[%clk 0:00:55.1]} 34... Ne5 {[%clk
0:00:15.6]} 35. Bxe5 {[%clk 0:00:53.9]} 35... dxe5 {[%clk 0:00:14.6]} 36. Qd2
{[%clk 0:00:52.3]} 36... Bxb4 {[%clk 0:00:11.3]} 37. Qg5+ {[%clk 0:00:30.4]}
37... Qg6 {[%clk 0:00:11.3]} 38. Qxg6+ {[%clk 0:00:25.5]} 38... Bxg6 {[%clk
0:00:11.1]} 39. Re3 {[%clk 0:00:22.8]} 39... Bd2 {[%clk 0:00:09.7]} 40. Kf2
{[%clk 0:00:16.8]} 40... Bxe3+ {[%clk 0:00:08.6]} 41. Kxe3 {[%clk 0:00:17.7]}
41... Rf8 {[%clk 0:00:07.6]} 42. Rc8 {[%clk 0:00:17.1]} 42... Rxc8 {[%clk
0:00:06.4]} 43. Nxc8 {[%clk 0:00:18]} 43... Bf7 {[%clk 0:00:02.8]} 44. d6 {[%clk
0:00:16.3]} 44... Kf8 {[%clk 0:00:02.7]} 45. d7 {[%clk 0:00:15.5]} 1-0

[Event "*** Titled Tuesday Blitz"]
[Site "Chess.com"]
[Date "2020.04.14"]
[Round "5"]
[White "Khamrakulov_Djurabek"]
[Black "Willychess95"]
[Result "1-0"]
[WhiteElo "2901"]
[BlackElo "2644"]
[TimeControl "180+1"]
[EndTime "10:51:18 PDT"]
[Termination "Khamrakulov_Djurabek won by resignation"]

1. e4 {[%clk 0:03:00.9]} 1... c5 {[%clk 0:02:59.7]} 2. c3 {[%clk 0:03:00.8]}
2... Nf6 {[%clk 0:02:59.1]} 3. e5 {[%clk 0:03:01.1]} 3... Nd5 {[%clk 0:02:59.6]}
4. d4 {[%clk 0:03:01.7]} 4... cxd4 {[%clk 0:02:57.8]} 5. Nf3 {[%clk 0:03:02]}
5... d6 {[%clk 0:02:55.6]} 6. cxd4 {[%clk 0:03:02.3]} 6... Nc6 {[%clk
0:02:55.3]} 7. Bc4 {[%clk 0:03:02.3]} 7... Nb6 {[%clk 0:02:54.2]} 8. Bb5 {[%clk
0:03:01.9]} 8... dxe5 {[%clk 0:02:47.8]} 9. Nxe5 {[%clk 0:03:02]} 9... Bd7
{[%clk 0:02:47.8]} 10. Nxd7 {[%clk 0:03:02]} 10... Qxd7 {[%clk 0:02:48.7]} 11.
Nc3 {[%clk 0:03:01.9]} 11... e6 {[%clk 0:02:48.1]} 12. O-O {[%clk 0:02:59.8]}
12... Be7 {[%clk 0:02:46.7]} 13. Qg4 {[%clk 0:02:59.8]} 13... O-O-O {[%clk
0:02:12.8]} 14. Be3 {[%clk 0:02:43.2]} 14... Kb8 {[%clk 0:02:05]} 15. Qxg7
{[%clk 0:02:35.9]} 15... a6 {[%clk 0:01:55.7]} 16. Bxc6 {[%clk 0:02:24.3]} 16...
Qxc6 {[%clk 0:01:56.6]} 17. Qxf7 {[%clk 0:02:24.2]} 17... Bd6 {[%clk 0:01:54.3]}
18. g3 {[%clk 0:02:17.1]} 18... h5 {[%clk 0:01:54.2]} 19. Qxe6 {[%clk
0:02:11.9]} 19... h4 {[%clk 0:01:42.9]} 20. d5 {[%clk 0:02:09.7]} 20... Qc7
{[%clk 0:01:41.6]} 21. Ne4 {[%clk 0:01:49.1]} 21... hxg3 {[%clk 0:01:35.9]} 22.
Nxd6 {[%clk 0:01:38.2]} 22... Qh7 {[%clk 0:01:18.8]} 23. h3 {[%clk 0:01:25.6]}
23... Rdg8 {[%clk 0:00:59.3]} 24. Bf4 {[%clk 0:01:01.5]} 24... gxf2+ {[%clk
0:00:34.7]} 25. Kh2 {[%clk 0:01:00.6]} 25... Rg6 {[%clk 0:00:32.9]} 26. Nc8+
{[%clk 0:00:50.7]} 26... Ka8 {[%clk 0:00:16.9]} 27. Nxb6+ {[%clk 0:00:50.4]}
27... Ka7 {[%clk 0:00:16.8]} 28. Qe3 {[%clk 0:00:39]} 28... Rxb6 {[%clk
0:00:16.7]} 29. a4 {[%clk 0:00:31.9]} 29... Ka8 {[%clk 0:00:16.9]} 30. Rxf2
{[%clk 0:00:28]} 30... Rf6 {[%clk 0:00:09.1]} 31. Rg1 {[%clk 0:00:27.2]} 31...
Rf5 {[%clk 0:00:05.1]} 32. d6 {[%clk 0:00:26.1]} 32... Rhf8 {[%clk 0:00:04.9]}
33. Rg4 {[%clk 0:00:23.2]} 33... Qd7 {[%clk 0:00:04.8]} 34. Kg3 {[%clk
0:00:19.6]} 34... R5f7 {[%clk 0:00:04.7]} 35. Qd4 {[%clk 0:00:16.6]} 35... Re8
{[%clk 0:00:05.2]} 36. Be3 {[%clk 0:00:15.5]} 36... b6 {[%clk 0:00:04.5]} 37.
Qd5+ {[%clk 0:00:15.1]} 37... Kb8 {[%clk 0:00:04.1]} 38. Rxf7 {[%clk 0:00:12]}
38... Qxd6+ {[%clk 0:00:03.5]} 39. Qxd6+ {[%clk 0:00:11.6]} 1-0

[Event "*** Titled Tuesday Blitz"]
[Site "Chess.com"]
[Date "2020.04.14"]
[Round "5"]
[White "ItalianMachine"]
[Black "Qingdom"]
[Result "1-0"]
[WhiteElo "2280"]
[BlackElo "2096"]
[TimeControl "180+1"]
[EndTime "10:51:18 PDT"]
[Termination "ItalianMachine won by checkmate"]

1. d4 {[%clk 0:02:51.5]} 1... Nf6 {[%clk 0:02:59.3]} 2. c4 {[%clk 0:02:51]} 2...
c5 {[%clk 0:02:59.2]} 3. d5 {[%clk 0:02:50.7]} 3... e6 {[%clk 0:02:58.9]} 4. Nc3
{[%clk 0:02:50]} 4... exd5 {[%clk 0:02:59.2]} 5. cxd5 {[%clk 0:02:50.8]} 5... d6
{[%clk 0:02:59.5]} 6. e4 {[%clk 0:02:50.5]} 6... g6 {[%clk 0:02:59.4]} 7. Nf3
{[%clk 0:02:51]} 7... Bg7 {[%clk 0:02:59.3]} 8. Be2 {[%clk 0:02:51.4]} 8... O-O
{[%clk 0:02:59.2]} 9. O-O {[%clk 0:02:51.8]} 9... Re8 {[%clk 0:02:57]} 10. Bf4
{[%clk 0:02:42.3]} 10... Nxe4 {[%clk 0:02:51.7]} 11. Bb5 {[%clk 0:02:27.4]}
11... Nxc3 {[%clk 0:02:47.8]} 12. bxc3 {[%clk 0:02:25.9]} 12... Bd7 {[%clk
0:02:46.4]} 13. Qb3 {[%clk 0:02:20.9]} 13... Bxb5 {[%clk 0:02:25.1]} 14. Qxb5
{[%clk 0:02:21.8]} 14... Bxc3 {[%clk 0:02:25.1]} 15. Rac1 {[%clk 0:02:18.1]}
15... Be5 {[%clk 0:02:21.4]} 16. Bxe5 {[%clk 0:02:13.5]} 16... dxe5 {[%clk
0:02:21.5]} 17. Qxb7 {[%clk 0:02:12.4]} 17... Nd7 {[%clk 0:02:20.5]} 18. Rfd1
{[%clk 0:02:09.7]} 18... Qc8 {[%clk 0:02:10.4]} 19. Qb5 {[%clk 0:01:54.2]} 19...
Rb8 {[%clk 0:02:07.7]} 20. Qa5 {[%clk 0:01:53.7]} 20... Rb7 {[%clk 0:01:57.3]}
21. Nd2 {[%clk 0:01:51.3]} 21... Qb8 {[%clk 0:01:44.9]} 22. Ne4 {[%clk
0:01:49.6]} 22... Rb5 {[%clk 0:01:29.3]} 23. Qa3 {[%clk 0:01:49.2]} 23... Qb6
{[%clk 0:01:26]} 24. Qc3 {[%clk 0:01:37.8]} 24... Rb8 {[%clk 0:01:15.7]} 25. Qh3
{[%clk 0:01:29.8]} 25... f5 {[%clk 0:01:13.2]} 26. Nc3 {[%clk 0:01:25.6]} 26...
Rb2 {[%clk 0:01:07.9]} 27. d6 {[%clk 0:01:24.6]} 27... c4 {[%clk 0:01:05.7]} 28.
Qh4 {[%clk 0:01:22.2]} 28... Re8 {[%clk 0:00:35.9]} 29. Nd5 {[%clk 0:01:21.4]}
29... Qa5 {[%clk 0:00:29.3]} 30. Nf6+ {[%clk 0:01:10.8]} 30... Nxf6 {[%clk
0:00:28.7]} 31. Qxf6 {[%clk 0:01:11.1]} 31... Rbb8 {[%clk 0:00:20.5]} 32. d7
{[%clk 0:01:09]} 32... Rf8 {[%clk 0:00:20.7]} 33. Qe6+ {[%clk 0:01:03]} 33...
Kg7 {[%clk 0:00:20.9]} 34. Rd5 {[%clk 0:01:01.3]} 34... Qa3 {[%clk 0:00:19.6]}
35. Qxe5+ {[%clk 0:01:00.7]} 35... Kh6 {[%clk 0:00:18.5]} 36. Rcd1 {[%clk
0:00:50.1]} 36... Qxa2 {[%clk 0:00:16.6]} 37. R5d4 {[%clk 0:00:36]} 37... g5
{[%clk 0:00:09.1]} 38. Rd6+ {[%clk 0:00:28.3]} 38... Kh5 {[%clk 0:00:09.1]} 39.
Qg3 {[%clk 0:00:22]} 39... g4 {[%clk 0:00:07.8]} 40. Qf4 {[%clk 0:00:09.4]}
40... Rf6 {[%clk 0:00:06.4]} 41. Rxf6 {[%clk 0:00:08.6]} 41... Rb1 {[%clk
0:00:02.4]} 42. Rh6# {[%clk 0:00:07.9]} 1-0

[Event "*** Titled Tuesday Blitz"]
[Site "Chess.com"]
[Date "2020.04.14"]
[Round "5"]
[White "HouseOfDurin"]
[Black "Ave_Mariia"]
[Result "1/2-1/2"]
[WhiteElo "2067"]
[BlackElo "2302"]
[TimeControl "180+1"]
[EndTime "10:51:19 PDT"]
[Termination "Game drawn by agreement"]

1. d4 {[%clk 0:03:00.9]} 1... Nf6 {[%clk 0:02:59.6]} 2. Bg5 {[%clk 0:03:01.1]}
2... e6 {[%clk 0:02:56.5]} 3. e4 {[%clk 0:03:00.7]} 3... h6 {[%clk 0:02:56.8]}
4. Bxf6 {[%clk 0:03:00.6]} 4... Qxf6 {[%clk 0:02:57.7]} 5. e5 {[%clk 0:03:00.9]}
5... Qd8 {[%clk 0:02:54.6]} 6. f4 {[%clk 0:03:00.2]} 6... d6 {[%clk 0:02:52.7]}
7. Nf3 {[%clk 0:03:00]} 7... c5 {[%clk 0:02:51.8]} 8. dxc5 {[%clk 0:02:56.4]}
8... dxc5 {[%clk 0:02:33.3]} 9. Qxd8+ {[%clk 0:02:55]} 9... Kxd8 {[%clk
0:02:34.2]} 10. Nc3 {[%clk 0:02:45.1]} 10... Nc6 {[%clk 0:02:31.9]} 11. O-O-O+
{[%clk 0:02:44.9]} 11... Bd7 {[%clk 0:02:26]} 12. Nb5 {[%clk 0:02:36.6]} 12...
a6 {[%clk 0:02:07.8]} 13. Nd6 {[%clk 0:02:35]} 13... Bxd6 {[%clk 0:02:07.8]} 14.
Rxd6 {[%clk 0:02:35.7]} 14... Kc7 {[%clk 0:02:06.8]} 15. Nd2 {[%clk 0:02:06.6]}
15... f6 {[%clk 0:02:04.2]} 16. Nc4 {[%clk 0:01:37.2]} 16... fxe5 {[%clk
0:01:55]} 17. Rxd7+ {[%clk 0:01:23.2]} 17... Kxd7 {[%clk 0:01:54.2]} 18. Nb6+
{[%clk 0:01:23.8]} 18... Kd6 {[%clk 0:01:42.5]} 19. fxe5+ {[%clk 0:01:17.5]}
19... Nxe5 {[%clk 0:01:38.8]} 20. Nxa8 {[%clk 0:01:14.8]} 20... Rxa8 {[%clk
0:01:38.7]} 21. g3 {[%clk 0:00:59.4]} 21... Rf8 {[%clk 0:01:34.4]} 22. Bg2
{[%clk 0:00:55]} 22... b6 {[%clk 0:01:23.8]} 23. Rd1+ {[%clk 0:00:50.1]} 23...
Ke7 {[%clk 0:01:23.9]} 24. Re1 {[%clk 0:00:44]} 24... Ng6 {[%clk 0:01:09.6]} 25.
Bb7 {[%clk 0:00:16.8]} 25... a5 {[%clk 0:01:09.4]} 26. Bd5 {[%clk 0:00:15.4]}
26... Rf6 {[%clk 0:01:07.5]} 27. Bc4 {[%clk 0:00:14.6]} 27... e5 {[%clk
0:01:04.9]} 28. Re2 {[%clk 0:00:13.4]} 28... Rd6 {[%clk 0:00:47.4]} 29. b3
{[%clk 0:00:12.8]} 29... h5 {[%clk 0:00:42.6]} 30. Bd3 {[%clk 0:00:12]} 30...
Re6 {[%clk 0:00:36.8]} 31. Bxg6 {[%clk 0:00:11.2]} 31... Rxg6 {[%clk 0:00:36.3]}
32. Rxe5+ {[%clk 0:00:11.8]} 32... Re6 {[%clk 0:00:35.7]} 33. Rxh5 {[%clk
0:00:11.1]} 33... Kd6 {[%clk 0:00:33.1]} 34. Kb2 {[%clk 0:00:11]} 34... b5
{[%clk 0:00:31.7]} 35. a4 {[%clk 0:00:10.1]} 35... b4 {[%clk 0:00:31.4]} 36. h4
{[%clk 0:00:09.9]} 36... Rg6 {[%clk 0:00:30]} 37. Rg5 {[%clk 0:00:07]} 37...
Rxg5 {[%clk 0:00:30.5]} 38. hxg5 {[%clk 0:00:07.9]} 38... Ke5 {[%clk 0:00:31.2]}
39. c3 {[%clk 0:00:08.3]} 39... Kf5 {[%clk 0:00:30.9]} 40. cxb4 {[%clk
0:00:08.2]} 40... cxb4 {[%clk 0:00:31.4]} 41. Kc2 {[%clk 0:00:08.6]} 41... Kxg5
{[%clk 0:00:31.9]} 42. Kd3 {[%clk 0:00:08.3]} 42... Kg4 {[%clk 0:00:32.5]} 43.
Kc4 {[%clk 0:00:08.3]} 43... Kxg3 {[%clk 0:00:33.2]} 44. Kb5 {[%clk 0:00:08.7]}
44... Kf4 {[%clk 0:00:31.4]} 45. Kxa5 {[%clk 0:00:08.7]} 45... g5 {[%clk
0:00:31.9]} 46. Kxb4 {[%clk 0:00:04.6]} 46... g4 {[%clk 0:00:32.3]} 47. a5
{[%clk 0:00:05.5]} 47... g3 {[%clk 0:00:32.8]} 48. a6 {[%clk 0:00:06.4]} 48...
g2 {[%clk 0:00:33.5]} 49. a7 {[%clk 0:00:07.2]} 49... g1=Q {[%clk 0:00:34.2]}
50. a8=Q {[%clk 0:00:07.6]} 50... Qd4+ {[%clk 0:00:33.1]} 51. Kb5 {[%clk
0:00:07.6]} 51... Qd3+ {[%clk 0:00:32.1]} 52. Kb4 {[%clk 0:00:07.6]} 52... Qd4+
{[%clk 0:00:31.3]} 1/2-1/2

[Event "*** Titled Tuesday Blitz"]
[Site "Chess.com"]
[Date "2020.04.14"]
[Round "5"]
[White "Zq1"]
[Black "OK97"]
[Result "1-0"]
[WhiteElo "2582"]
[BlackElo "2725"]
[TimeControl "180+1"]
[EndTime "10:51:21 PDT"]
[Termination "Zq1 won by resignation"]

1. d4 {[%clk 0:02:58]} 1... f5 {[%clk 0:02:59.4]} 2. Nf3 {[%clk 0:02:56.6]} 2...
Nf6 {[%clk 0:02:59.2]} 3. Bg5 {[%clk 0:02:56.4]} 3... g6 {[%clk 0:02:54]} 4.
Bxf6 {[%clk 0:02:55.9]} 4... exf6 {[%clk 0:02:54.9]} 5. e3 {[%clk 0:02:56.1]}
5... d5 {[%clk 0:02:54.3]} 6. c4 {[%clk 0:02:55.6]} 6... Be6 {[%clk 0:02:49.7]}
7. cxd5 {[%clk 0:02:54.9]} 7... Bxd5 {[%clk 0:02:50.6]} 8. Nc3 {[%clk
0:02:55.2]} 8... Bb4 {[%clk 0:02:50.6]} 9. a3 {[%clk 0:02:47.9]} 9... Bxc3+
{[%clk 0:02:46.9]} 10. bxc3 {[%clk 0:02:48]} 10... c5 {[%clk 0:02:35.1]} 11.
Bb5+ {[%clk 0:02:38.1]} 11... Nc6 {[%clk 0:02:20.1]} 12. O-O {[%clk 0:02:18.1]}
12... O-O {[%clk 0:02:14.1]} 13. c4 {[%clk 0:02:08.2]} 13... Bxf3 {[%clk
0:01:59.5]} 14. Qxf3 {[%clk 0:02:07]} 14... cxd4 {[%clk 0:02:00]} 15. Bxc6
{[%clk 0:01:51.9]} 15... bxc6 {[%clk 0:02:00.9]} 16. exd4 {[%clk 0:01:50.3]}
16... Qxd4 {[%clk 0:01:56]} 17. Qxc6 {[%clk 0:01:50.2]} 17... Rac8 {[%clk
0:01:50.8]} 18. Qe6+ {[%clk 0:01:48.2]} 18... Kh8 {[%clk 0:01:51.2]} 19. Rac1
{[%clk 0:01:43.3]} 19... Rfe8 {[%clk 0:01:43.4]} 20. Qf7 {[%clk 0:01:41.9]}
20... Rf8 {[%clk 0:01:42.4]} 21. Qe7 {[%clk 0:01:39.4]} 21... Rfe8 {[%clk
0:01:41.1]} 22. Qf7 {[%clk 0:01:38.5]} 22... Rf8 {[%clk 0:01:38.8]} 23. Qe7
{[%clk 0:01:38.4]} 23... Qc5 {[%clk 0:01:35]} 24. Rfe1 {[%clk 0:01:30.6]} 24...
Rc7 {[%clk 0:01:26.8]} 25. Qxc5 {[%clk 0:01:29]} 25... Rxc5 {[%clk 0:01:26.9]}
26. Re7 {[%clk 0:01:26.2]} 26... Rfc8 {[%clk 0:01:13.2]} 27. Rxa7 {[%clk
0:01:07.1]} 27... Rxc4 {[%clk 0:01:13.3]} 28. Rxc4 {[%clk 0:01:07.2]} 28... Rxc4
{[%clk 0:01:14.2]} 29. g3 {[%clk 0:01:06.8]} 29... Kg8 {[%clk 0:01:04.5]} 30.
Kg2 {[%clk 0:01:04.9]} 30... g5 {[%clk 0:01:01.6]} 31. h3 {[%clk 0:00:59.9]}
31... h5 {[%clk 0:01:00.4]} 32. a4 {[%clk 0:00:58.9]} 32... h4 {[%clk 0:00:49]}
33. a5 {[%clk 0:00:53.3]} 33... hxg3 {[%clk 0:00:47.6]} 34. Kxg3 {[%clk
0:00:48.1]} 34... Rc3+ {[%clk 0:00:44.7]} 35. Kg2 {[%clk 0:00:47.4]} 35... Ra3
{[%clk 0:00:43.6]} 36. a6 {[%clk 0:00:45.5]} 36... f4 {[%clk 0:00:42.9]} 37. Kf1
{[%clk 0:00:28.9]} 37... Kf8 {[%clk 0:00:42.8]} 38. Ke2 {[%clk 0:00:27.5]} 38...
f5 {[%clk 0:00:35.5]} 39. f3 {[%clk 0:00:26.5]} 39... Kg8 {[%clk 0:00:24.3]} 40.
Kd2 {[%clk 0:00:26.1]} 40... g4 {[%clk 0:00:17.3]} 41. hxg4 {[%clk 0:00:25.3]}
41... fxg4 {[%clk 0:00:18.2]} 42. fxg4 {[%clk 0:00:25.5]} 42... f3 {[%clk
0:00:18.9]} 43. Ke1 {[%clk 0:00:24.9]} 43... Ra2 {[%clk 0:00:16.5]} 44. Kf1
{[%clk 0:00:24.8]} 44... Kf8 {[%clk 0:00:15.9]} 45. g5 {[%clk 0:00:23.3]} 45...
Kg8 {[%clk 0:00:16.1]} 46. g6 {[%clk 0:00:22.9]} 46... Kf8 {[%clk 0:00:15.7]}
47. Rf7+ {[%clk 0:00:21.9]} 47... Kg8 {[%clk 0:00:16.1]} 48. a7 {[%clk
0:00:22.4]} 48... f2 {[%clk 0:00:12.6]} 49. Rb7 {[%clk 0:00:21.7]} 1-0